fUSD/lending_fUSD_20250128
["ID","MTS","AMOUNT","RATE_DAILY","PERIOD"]
[350714051,1738078240306,-500.0,0.0001863,2]
[350714052,1738078240316,-500.0,0.0001863,2]
[350714053,1738078240326,-223.83,0.0001863,2]
[350714054,1738078240336,-500.0,0.0001863,2]
[350714055,1738078240346,-500.0,0.0001863,2]
[350714056,1738078240358,-500.0,0.0001863,2]
[350714057,1738078240368,-500.0,0.0001863,2]
[350714058,1738078240377,-371.43173551,0.0001863,2]
[350714059,1738078240387,-500.0,0.0001863,2]
[350714060,1738078240397,-500.0,0.0001863,2]
[350714061,1738078240406,-500.0,0.0001863,2]
[350714062,1738078240416,-590.09,0.0001863,2]
[350714063,1738078240426,-593.48,0.0001863,2]
[350714064,1738078240437,-500.0,0.0001863,2]
[350714065,1738078240447,-500.0,0.0001863,2]
[350714066,1738078240457,-500.0,0.0001863,2]
[350714067,1738078240467,-500.0,0.0001863,2]
[350714068,1738078240476,-410.69,0.0001863,2]
[350714069,1738078240486,-504.45,0.0001863,2]
[350714070,1738078240496,-500.0,0.0001863,2]
[350714071,1738078240505,-500.0,0.0001863,2]
[350714072,1738078240514,-196.35,0.0001863,2]
[350714073,1738078240524,-500.0,0.0001863,2]
[350714074,1738078240534,-500.0,0.0001863,2]
[350714075,1738078240544,-514.1,0.0001863,2]
[350714076,1738078240555,-500.0,0.0001863,2]
[350714077,1738078240565,-500.0,0.0001863,2]
[350714078,1738078240575,-530.92,0.0001863,2]
[350714079,1738078240584,-500.0,0.0001863,2]
[350714080,1738078240594,-500.0,0.0001863,2]
[350714081,1738078240604,-500.0,0.0001863,2]
[350714082,1738078240614,-500.0,0.0001863,2]
[350714083,1738078240623,-500.0,0.0001863,2]
[350714084,1738078240633,-245.49216688,0.0001863,2]
[350714085,1738078240643,-500.0,0.0001863,2]
[350714086,1738078240652,-500.0,0.0001863,2]
[350714087,1738078240663,-500.0,0.0001863,2]
[350714088,1738078240672,-500.0,0.0001863,2]
[350714089,1738078240682,-500.0,0.0001863,2]
[350714090,1738078240692,-500.0,0.0001863,2]
[350714091,1738078240702,-500.0,0.0001863,2]
[350714092,1738078240711,-500.52683085,0.0001863,2]
[350714093,1738078240721,-508.0257218,0.0001863,2]
[350714094,1738078240730,-500.0,0.0001863,2]
[350714095,1738078240741,-596.83810551,0.0001863,2]
[350714096,1738078240751,-504.93574993,0.0001863,2]
[350714097,1738078240760,-500.0,0.0001863,2]
[350714098,1738078240769,-500.0,0.0001863,2]
[350714099,1738078240779,-295.05,0.0001863,2]
[350714100,1738078240788,-505.91259316,0.0001863,2]
[350714101,1738078240797,-500.0,0.0001863,2]
[350714102,1738078240806,-500.0,0.0001863,2]
[350714103,1738078240815,-500.0,0.0001863,2]
[350714104,1738078240826,-502.76122109,0.0001863,2]
[350714105,1738078240835,-500.0,0.0001863,2]
[350714106,1738078240845,-281.03,0.0001863,2]
[350714107,1738078240855,-502.53036397,0.0001863,2]
[350714108,1738078240865,-500.0,0.0001863,2]
[350714109,1738078240874,-500.0,0.0001863,2]
[350714110,1738078240883,-229.71,0.0001863,2]
[350714111,1738078240893,-500.0,0.0001863,2]
[350714112,1738078240903,-500.0,0.0001863,2]
[350714113,1738078240912,-500.0,0.0001863,2]
[350714114,1738078240922,-500.0,0.0001863,2]
[350714115,1738078240931,-500.0,0.0001863,2]
[350714116,1738078240940,-500.0,0.0001863,2]
[350714117,1738078240950,-500.0,0.0001863,2]
[350714118,1738078240959,-500.0,0.0001863,2]
[350714119,1738078240969,-502.43979428,0.0001863,2]
[350714120,1738078240979,-500.0,0.0001863,2]
[350714121,1738078240989,-500.0,0.0001863,2]
[350714122,1738078240998,-500.0,0.0001863,2]
[350714123,1738078241008,-500.0,0.0001863,2]
[350714124,1738078241018,-500.0,0.0001863,2]
[350714125,1738078241028,-151.40402,0.0001863,2]
[350714126,1738078241038,-500.0,0.0001863,2]
[350714127,1738078241048,-150.0,0.0001863,2]
[350714128,1738078241058,-150.0,0.0001863,2]
[350714129,1738078241067,-150.0,0.0001863,2]
[350714130,1738078241077,-500.0,0.0001863,2]
[350714131,1738078241086,-200.0,0.0001863,2]
[350714132,1738078241095,-150.0,0.0001863,2]
[350714133,1738078241105,-150.0,0.0001863,2]
[350714134,1738078241114,-298.31,0.0001863,2]
[350714135,1738078241123,-298.31,0.0001863,2]
[350714136,1738078241133,-150.0,0.0001863,2]
[350714137,1738078241144,-300.0,0.0001863,2]
[350714138,1738078241154,-438.07,0.0001863,2]
[350714139,1738078241165,-298.31,0.0001863,2]
[350714140,1738078241175,-298.31,0.0001863,2]
[350714141,1738078241185,-680.3152096,0.00018645,2]
[350714142,1738078241195,-542.4698939,0.00018645,2]
[350714143,1738078241205,-150.47604323,0.00018657,2]
[350714144,1738078241215,-500.0,0.00018657,2]
[350714145,1738078241226,-150.0,0.00018657,2]
[350714146,1738078241236,-150.0,0.00018657,2]
[350714147,1738078241247,-500.0,0.00018657,2]
[350714148,1738078241257,-502.96651066,0.00018658,2]
[350714149,1738078241267,-500.0,0.00018664,2]
[350714150,1738078241277,-500.0,0.00018673,2]
[350714151,1738078241286,-500.0,0.00018673,2]
[350714152,1738078241297,-500.0,0.00018685,2]
[350714153,1738078241306,-174.54756812,0.00018685,2]
[350714154,1738078241316,-200.92067719,0.00018685,2]
[350714155,1738078241326,-565.13393825,0.00018685,2]
[350714156,1738078241336,-3727.19469266,0.00018688,2]
[350714157,1738078241346,-800.0,0.000187,6]
[350714158,1738078241359,-500.0,0.00018712,2]
[350714159,1738078241368,-803.08086832,0.0001874,2]
[350714160,1738078241378,-502.96651066,0.0001874,2]
[350714161,1738078241387,-381.23,0.00018751,2]
[350714162,1738078241398,-500.0,0.00018764,2]
[350714163,1738078241408,-637.0,0.00018775,2]
[350714164,1738078241419,-568.0,0.00018775,2]
[350714165,1738078241428,-150.0,0.00018775,2]
[350714166,1738078241438,-1866.0,0.00018775,2]
[350714167,1738078241447,-782.0,0.00018775,2]
[350714168,1738078241457,-907.0,0.00018775,2]
[350714169,1738078241468,-2950.0,0.00018775,2]
[350714170,1738078241478,-1262.0,0.00018775,2]
[350714171,1738078241487,-1322.0,0.00018775,2]
[350714172,1738078241496,-151.099,0.00018775,2]
[350714173,1738078241505,-543.884,0.00018775,2]
[350714174,1738078241515,-1107.0,0.00018775,2]
[350714175,1738078241525,-150.0,0.00018775,2]
[350714176,1738078241535,-1271.0,0.00018775,2]
[350714177,1738078241544,-3906.0,0.00018775,2]
[350714178,1738078241554,-2020.0,0.00018775,2]
[350714179,1738078241563,-638.0,0.00018775,2]
[350714180,1738078241573,-1200.0,0.000188,6]
[350714181,1738078241582,-150.0,0.00018822,2]
[350714182,1738078241592,-502.96651066,0.00018822,2]
[350714183,1738078241601,-438.16,0.00018822,2]
[350714184,1738078241610,-150.0,0.00018822,2]
[350714185,1738078241620,-150.0,0.00018822,2]
[350714186,1738078241629,-150.0,0.00018822,2]
[350714187,1738078241639,-150.0,0.00018822,2]
[350714188,1738078241649,-438.16,0.00018822,2]
[350714189,1738078241658,-438.16,0.00018822,2]
[350714190,1738078241669,-150.0,0.00018822,2]
[350714191,1738078241678,-375.56,0.00018822,2]
[350714192,1738078241688,-168.02,0.00018837,2]
[350714193,1738078241697,-170.172,0.00018842,2]
[350714194,1738078241707,-252.653,0.00018842,2]
[350714195,1738078241717,-265.0,0.0001885,2]
[350714196,1738078241726,-500.0,0.00018864,2]
[350714197,1738078241736,-1600.0,0.000189,6]
[350714198,1738078241746,-1000.0,0.00018904,9]
[350714199,1738078241755,-215.0,0.0001891,2]
[350714200,1738078241765,-502.96651066,0.00018932,2]
[350714201,1738078241774,-500.0,0.00018964,2]
[350714202,1738078241784,-60059.40145113,0.00019,2]
[350714203,1738078241794,-21612.34226715,0.00019,2]
[350714204,1738078241803,-1027.21708689,0.00019,2]
[350714205,1738078241813,-159.23294858,0.00019,2]
[350714206,1738078241823,-502.96651066,0.00019014,2]
[350714207,1738078241832,-161.80746257,0.00019064,2]
[350714208,1738078241842,-500.0,0.00019064,2]
[350714209,1738078241851,-8649.0334162,0.00019078,2]
[350714210,1738078241861,-502.96651066,0.00019096,2]
[350714211,1738078241870,-500.0,0.00019121,2]
[350714212,1738078241880,-50025.0,0.00019151,2]
[350714213,1738078241890,-4155.9730549,0.00019165,2]
[350714214,1738078241900,-4946.5694715,0.00019165,2]
[350714215,1738078241910,-5737.1658882,0.00019165,2]
[350714216,1738078241921,-6527.7623048,0.00019165,2]
[350714217,1738078241930,-271.2740631,0.00019165,2]
[350714218,1738078241940,-324.8677463,0.00019165,2]
[350714219,1738078241949,-378.4614296,0.00019165,2]
[350714220,1738078241959,-432.0551128,0.00019165,2]
[350714221,1738078241969,-931.911381,0.00019165,2]
[350714222,1738078241979,-1183.5075525,0.00019165,2]
[350714223,1738078241988,-1435.103724,0.00019165,2]
[350714224,1738078241997,-1686.6998954,0.00019165,2]
[350714225,1738078242007,-743.0877053,0.00019165,2]
[350714226,1738078242017,-943.7055167,0.00019165,2]
[350714227,1738078242027,-1144.3233282,0.00019165,2]
[350714228,1738078242037,-1344.9411396,0.00019165,2]
[350714229,1738078242046,-8649.03341616,0.00019169,2]
[350714230,1738078242056,-520.41730287,0.00019173,2]
[350714231,1738078242066,-152.95750977,0.00019173,2]
[350714232,1738078242075,-152.04273991,0.00019173,2]
[350714233,1738078242085,-500.0,0.00019173,2]
[350714234,1738078242095,-500.0,0.00019173,2]
[350714235,1738078242105,-531.27530268,0.00019173,2]
[350714236,1738078242114,-500.97932743,0.00019173,2]
[350714237,1738078242124,-516.88150255,0.00019173,2]
[350714238,1738078242133,-500.0,0.00019173,2]
[350714239,1738078242143,-161.2246752,0.00019173,2]
[350714240,1738078242153,-323.92872518,0.00019173,2]
[350714241,1738078242162,-517.96326242,0.00019173,2]
[350714242,1738078242175,-357.63217653,0.00019173,2]
[350714243,1738078242187,-500.0,0.00019173,2]
[350714244,1738078242197,-206.88679556,0.00019173,2]
[350714245,1738078242208,-500.0,0.00019178,2]
[350714246,1738078242219,-500.0,0.00019178,2]
[350714247,1738078242230,-520.16,0.00019178,2]
[350714248,1738078242241,-506.24971668,0.00019178,2]
[350714249,1738078242251,-500.0,0.00019178,2]
[350714250,1738078242261,-500.0,0.00019178,2]
[350714251,1738078242271,-500.0,0.00019178,2]
[350714252,1738078242281,-500.0,0.00019178,2]
[350714253,1738078242292,-500.0,0.00019178,2]
[350714254,1738078242301,-500.0,0.00019178,2]
[350714255,1738078242311,-509.64604613,0.00019178,2]
[350714256,1738078242321,-500.0,0.00019178,2]
[350714257,1738078242331,-500.0,0.00019178,2]
[350714258,1738078242340,-559.7,0.00019178,2]
[350714259,1738078242350,-500.0,0.00019178,2]
[350714260,1738078242364,-500.0,0.00019178,2]
[350714261,1738078242374,-500.0,0.00019178,2]
[350714262,1738078242384,-514.47976967,0.00019178,2]
[350714263,1738078242394,-500.0,0.00019178,2]
[350714264,1738078242405,-500.0,0.00019178,2]
[350714265,1738078242418,-502.13688183,0.00019178,2]
[350714266,1738078242427,-505.56141757,0.00019178,2]
[350714267,1738078242438,-500.0,0.00019178,2]
[350714268,1738078242447,-506.92610184,0.00019178,2]
[350714269,1738078242457,-500.0,0.00019178,2]
[350714270,1738078242467,-505.45223133,0.00019178,2]
[350714271,1738078242478,-500.0,0.00019178,2]
[350714272,1738078242487,-506.90934183,0.00019178,2]
[350714273,1738078242497,-500.0,0.00019178,2]
[350714274,1738078242507,-500.0,0.00019178,2]
[350714275,1738078242517,-500.0,0.00019178,2]
[350714276,1738078242526,-500.0,0.00019178,2]
[350714277,1738078242536,-500.0,0.00019178,2]
[350714278,1738078242546,-500.0,0.00019178,2]
[350714279,1738078242555,-500.0,0.00019178,2]
[350714280,1738078242565,-500.0,0.00019178,2]
[350714281,1738078242575,-500.0,0.00019178,2]
[350714282,1738078242584,-503.38578049,0.00019178,2]
[350714283,1738078242594,-500.0,0.00019178,2]
[350714284,1738078242604,-500.0,0.00019178,2]
[350714286,1738078242614,-500.0,0.00019178,2]
[350714288,1738078242624,-500.0,0.00019178,2]
[350714289,1738078242633,-500.0,0.00019178,2]
[350714290,1738078242642,-500.0,0.00019178,2]
[350714291,1738078242652,-500.0,0.00019178,2]
[350714292,1738078242661,-500.0,0.00019178,2]
[350714293,1738078242676,-349.76978228,0.00019178,2]
[350714295,1738078242686,-500.0,0.00019178,2]
[350714298,1738078242696,-500.0,0.00019178,2]
[350714301,1738078242705,-500.0,0.00019178,2]
[350714303,1738078242716,-500.0,0.00019178,2]
[350714305,1738078242726,-500.0,0.00019178,2]
[350714308,1738078242909,-500.0,0.00019178,2]
[350714309,1738078242924,-500.0,0.00019178,2]
[350714310,1738078242934,-500.0,0.00019178,2]
[350714311,1738078242944,-500.0,0.00019178,2]
[350714312,1738078242953,-500.0,0.00019178,2]
[350714313,1738078242962,-500.0,0.00019178,2]
[350714314,1738078242973,-500.0,0.00019178,2]
[350714315,1738078242983,-500.0,0.00019178,2]
[350714316,1738078242994,-500.0,0.00019178,2]
[350714317,1738078243004,-478.42991424,0.00019178,2]
[350714318,1738078243014,-500.0,0.00019178,2]
[350714319,1738078243024,-500.0,0.00019178,2]
[350714320,1738078243033,-500.0,0.00019178,2]
[350714321,1738078243043,-503.75533264,0.00019178,2]
[350714322,1738078243053,-500.0,0.00019178,2]
[350714323,1738078243063,-500.0,0.00019178,2]
[350714324,1738078243073,-378.00560944,0.00019178,2]
[350714325,1738078243084,-501.68027478,0.00019178,2]
[350714326,1738078243093,-500.0,0.00019178,2]
[350714327,1738078243103,-500.0,0.00019178,2]
[350714328,1738078243113,-500.0,0.00019178,2]
[350714329,1738078243122,-504.44470264,0.00019178,2]
[350714330,1738078243132,-364.83393,0.00019178,2]
[350714331,1738078243141,-510.67321001,0.00019178,2]
[350714332,1738078243151,-500.0,0.00019178,2]
[350714333,1738078243160,-500.0,0.00019178,2]
[350714334,1738078243170,-500.0,0.00019178,2]
[350714335,1738078243180,-500.0,0.00019178,2]
[350714336,1738078243189,-500.0,0.00019178,2]
[350714337,1738078243199,-500.0,0.00019178,2]
[350714338,1738078243208,-265.9802968,0.00019178,2]
[350714339,1738078243218,-500.0,0.00019178,2]
[350714340,1738078243227,-422.7,0.00019178,2]
[350714341,1738078243236,-500.0,0.00019178,2]
[350714342,1738078243246,-500.0,0.00019178,2]
[350714343,1738078243256,-500.0,0.00019178,2]
[350714344,1738078243266,-500.0,0.00019178,2]
[350714345,1738078243275,-500.0,0.00019178,2]
[350714346,1738078243284,-500.0,0.00019178,2]
[350714347,1738078243294,-500.0,0.00019178,2]
[350714348,1738078243303,-404.77,0.00019178,2]
[350714349,1738078243312,-577.98107709,0.00019178,2]
[350714350,1738078243322,-500.0,0.00019178,2]
[350714351,1738078243332,-500.0,0.00019178,2]
[350714352,1738078243341,-500.0,0.00019178,2]
[350714353,1738078243352,-398.92,0.00019178,2]
[350714354,1738078243366,-500.0,0.00019178,2]
[350714355,1738078243376,-500.0,0.00019178,2]
[350714356,1738078243385,-500.0,0.00019178,2]
[350714357,1738078243395,-500.0,0.00019178,2]
[350714358,1738078243406,-500.0,0.00019178,2]
[350714359,1738078243416,-500.0,0.00019178,2]
[350714360,1738078243425,-500.0,0.00019178,2]
[350714361,1738078243436,-500.0,0.00019178,2]
[350714362,1738078243445,-500.0,0.00019178,2]
[350714363,1738078243455,-502.56457031,0.00019178,2]
[350714364,1738078243464,-500.0,0.00019178,2]
[350714365,1738078243474,-500.0,0.00019178,2]
[350714366,1738078243483,-500.0,0.00019178,2]
[350714367,1738078243493,-500.0,0.00019178,2]
[350714368,1738078243502,-221.94,0.00019178,2]
[350714369,1738078243512,-500.0,0.00019178,2]
[350714370,1738078243521,-500.0,0.00019178,2]
[350714371,1738078243531,-500.0,0.00019178,2]
[350714372,1738078243540,-616.88,0.00019178,2]
[350714373,1738078243550,-232.1271861,0.00019178,2]
[350714374,1738078243559,-500.0,0.00019178,2]
[350714375,1738078243569,-500.0,0.00019178,2]
[350714376,1738078243579,-500.0,0.00019178,2]
[350714377,1738078243588,-500.0,0.00019178,2]
[350714378,1738078243597,-500.0,0.00019178,2]
[350714379,1738078243607,-604.92,0.00019178,2]
[350714380,1738078243616,-500.0,0.00019178,2]
[350714381,1738078243626,-500.0,0.00019178,2]
[350714382,1738078243635,-500.0,0.00019178,2]
[350714383,1738078243645,-624.12,0.00019178,2]
[350714384,1738078243654,-500.0,0.00019178,2]
[350714385,1738078243664,-500.0,0.00019178,2]
[350714386,1738078243676,-500.0,0.00019178,2]
[350714387,1738078243686,-500.0,0.00019178,2]
[350714388,1738078243695,-595.76,0.00019178,2]
[350714389,1738078243705,-503.73451411,0.00019178,2]
[350714390,1738078243714,-500.0,0.00019178,2]
[350714391,1738078243724,-500.0,0.00019178,2]
[350714392,1738078243734,-500.0,0.00019178,2]
[350714393,1738078243744,-220.55,0.00019178,2]
[350714394,1738078243754,-500.0,0.00019178,2]
[350714395,1738078243763,-500.0,0.00019178,2]
[350714396,1738078243773,-500.0,0.00019178,2]
[350714397,1738078243783,-503.87469767,0.00019178,2]
[350714398,1738078243794,-500.0,0.00019178,2]
[350714399,1738078243803,-500.0,0.00019178,2]
[350714400,1738078243812,-500.0,0.00019178,2]
[350714401,1738078243822,-500.0,0.00019178,2]
[350714402,1738078243832,-500.0,0.00019178,2]
[350714403,1738078243841,-500.0,0.00019178,2]
[350714404,1738078243851,-174.98,0.00019178,2]
[350714405,1738078243860,-205.82774723,0.00019178,2]
[350714406,1738078243869,-500.0,0.00019178,2]
[350714407,1738078243878,-500.0,0.00019178,2]
[350714408,1738078243888,-500.0,0.00019178,2]
[350714409,1738078243897,-500.0,0.00019178,2]
[350714410,1738078243906,-500.0,0.00019178,2]
[350714411,1738078243915,-643.12,0.00019178,2]
[350714412,1738078243924,-500.0,0.00019178,2]
[350714413,1738078243934,-243.59793795,0.00019178,2]
[350714414,1738078243943,-500.0,0.00019178,2]
[350714415,1738078243953,-500.0,0.00019178,2]
[350714416,1738078243962,-531.02,0.00019178,2]
[350714417,1738078243971,-500.0,0.00019178,2]
[350714418,1738078243981,-275.94473716,0.00019178,2]
[350714419,1738078243990,-500.0,0.00019178,2]
[350714420,1738078244000,-532.28218952,0.00019178,9]
[350714421,1738078244010,-500.0,0.00019178,2]
[350714422,1738078244019,-500.0,0.00019178,2]
[350714423,1738078244028,-500.0,0.00019178,2]
[350714424,1738078244038,-500.0,0.00019178,2]
[350714426,1738078244047,-500.0,0.00019178,2]
[350714427,1738078244056,-564.51,0.00019178,2]
[350714428,1738078244065,-500.0,0.00019178,2]
[350714429,1738078244074,-500.0,0.00019178,2]
[350714430,1738078244083,-500.0,0.00019178,2]
[350714431,1738078244092,-500.0,0.00019178,2]
[350714432,1738078244101,-500.0,0.00019178,2]
[350714433,1738078244111,-500.0,0.00019178,2]
[350714434,1738078244120,-500.0,0.00019178,2]
[350714436,1738078244129,-258.44111925,0.00019178,2]
[350714437,1738078244138,-500.0,0.00019178,2]
[350714438,1738078244147,-500.0,0.00019178,2]
[350714439,1738078244155,-500.0,0.00019178,2]
[350714440,1738078244164,-500.0,0.00019178,2]
[350714441,1738078244173,-526.39632493,0.00019178,2]
[350714442,1738078244182,-500.0,0.00019178,2]
[350714443,1738078244191,-500.0,0.00019178,2]
[350714444,1738078244200,-500.0,0.00019178,2]
[350714445,1738078244210,-500.0,0.00019178,2]
[350714446,1738078244218,-500.0,0.00019178,2]
[350714447,1738078244227,-500.0,0.00019178,2]
[350714448,1738078244236,-500.0,0.00019178,2]
[350714449,1738078244246,-500.0,0.00019178,2]
[350714450,1738078244255,-360.15112834,0.00019178,2]
[350714451,1738078244264,-500.0,0.00019178,2]
[350714452,1738078244274,-500.0,0.00019178,2]
[350714453,1738078244283,-500.0,0.00019178,2]
[350714454,1738078244292,-500.0,0.00019178,2]
[350714455,1738078244301,-500.0,0.00019178,2]
[350714456,1738078244310,-500.0,0.00019178,2]
[350714457,1738078244319,-500.0,0.00019178,2]
[350714458,1738078244328,-500.0,0.00019178,2]
[350714459,1738078244338,-500.0,0.00019178,2]
[350714460,1738078244348,-500.0,0.00019178,2]
[350714461,1738078244361,-551.68,0.00019178,2]
[350714462,1738078244371,-500.0,0.00019178,2]
[350714463,1738078244381,-500.0,0.00019178,2]
[350714464,1738078244390,-500.0,0.00019178,2]
[350714465,1738078244401,-500.0,0.00019178,2]
[350714466,1738078244410,-500.0,0.00019178,2]
[350714467,1738078244420,-500.0,0.00019178,2]
[350714468,1738078244429,-529.33190929,0.00019178,2]
[350714469,1738078244440,-500.0,0.00019178,2]
[350714470,1738078244450,-500.0,0.00019178,2]
[350714471,1738078244460,-500.0,0.00019178,2]
[350714472,1738078244469,-500.0,0.00019178,2]
[350714473,1738078244479,-500.0,0.00019178,2]
[350714474,1738078244488,-500.0,0.00019178,2]
[350714476,1738078244498,-500.0,0.00019178,2]
[350714478,1738078244507,-500.0,0.00019178,2]
[350714480,1738078244516,-507.7555249,0.00019178,2]
[350714481,1738078244525,-500.0,0.00019178,2]
[350714482,1738078244535,-500.0,0.00019178,2]
[350714483,1738078244544,-500.0,0.00019178,2]
[350714484,1738078244554,-500.0,0.00019178,2]
[350714486,1738078244563,-500.0,0.00019178,2]
[350714488,1738078244572,-508.66238998,0.00019178,2]
[350714490,1738078244582,-500.0,0.00019178,2]
[350714492,1738078244591,-500.0,0.00019178,2]
[350714494,1738078244601,-160.36383268,0.00019178,2]
[350714496,1738078244610,-500.0,0.00019178,2]
[350714498,1738078244619,-500.0,0.00019178,2]
[350714500,1738078244628,-500.0,0.00019178,2]
[350714502,1738078244638,-500.0,0.00019178,2]
[350714504,1738078244647,-500.0,0.00019178,2]
[350714506,1738078244656,-500.0,0.00019178,2]
[350714508,1738078244667,-500.0,0.00019178,2]
[350714510,1738078244676,-500.0,0.00019178,2]
[350714512,1738078244686,-500.0,0.00019178,2]
[350714514,1738078244695,-500.0,0.00019178,2]
[350714516,1738078244704,-500.0,0.00019178,2]
[350714518,1738078244714,-503.27782304,0.00019178,2]
[350714520,1738078244724,-500.0,0.00019178,2]
[350714522,1738078244733,-500.0,0.00019178,2]
[350714524,1738078244742,-500.0,0.00019178,2]
[350714526,1738078244752,-500.0,0.00019178,2]
[350714528,1738078244761,-272.86473872,0.00019178,2]
[350714530,1738078244770,-500.0,0.00019178,2]
[350714531,1738078244779,-500.0,0.00019178,2]
[350714534,1738078244789,-500.0,0.00019178,2]
[350714535,1738078244798,-500.0,0.00019178,2]
[350714538,1738078244808,-500.0,0.00019178,2]
[350714540,1738078244817,-500.0,0.00019178,2]
[350714542,1738078244826,-367.26754647,0.00019178,2]
[350714544,1738078244836,-500.0,0.00019178,2]
[350714545,1738078244845,-500.0,0.00019178,2]
[350714548,1738078244855,-500.0,0.00019178,2]
[350714549,1738078244864,-500.0,0.00019178,2]
[350714551,1738078244873,-500.0,0.00019178,2]
[350714553,1738078244882,-500.0,0.00019178,2]
[350714555,1738078244891,-500.0,0.00019178,2]
[350714557,1738078244901,-500.0,0.00019178,2]
[350714560,1738078244910,-500.0,0.00019178,2]
[350714563,1738078244920,-500.0,0.00019178,2]
[350714566,1738078244929,-500.0,0.00019178,2]
[350714568,1738078244939,-500.0,0.00019178,2]
[350714570,1738078244948,-500.0,0.00019178,2]
[350714572,1738078244957,-500.0,0.00019178,2]
[350714574,1738078244967,-500.0,0.00019178,2]
[350714576,1738078244976,-500.0,0.00019178,2]
[350714578,1738078244986,-500.0,0.00019178,2]
[350714580,1738078244995,-500.0,0.00019178,2]
[350714582,1738078245004,-500.0,0.00019178,2]
[350714584,1738078245013,-500.0,0.00019178,2]
[350714586,1738078245022,-500.0,0.00019178,2]
[350714588,1738078245031,-459.78489837,0.00019178,2]
[350714590,1738078245041,-500.0,0.00019178,2]
[350714592,1738078245050,-500.0,0.00019178,2]
[350714594,1738078245059,-500.0,0.00019178,2]
[350714596,1738078245068,-500.0,0.00019178,2]
[350714598,1738078245077,-500.0,0.00019178,2]
[350714600,1738078245087,-509.78409742,0.00019178,2]
[350714602,1738078245096,-500.0,0.00019178,2]
[350714604,1738078245105,-500.0,0.00019178,2]
[350714606,1738078245113,-500.0,0.00019178,2]
[350714608,1738078245122,-500.0,0.00019178,2]
[350714610,1738078245132,-640.99163612,0.00019178,2]
[350714612,1738078245141,-543.21,0.00019178,2]
[350714613,1738078245150,-543.21,0.00019178,2]
[350714615,1738078245160,-543.21,0.00019178,2]
[350714618,1738078245170,-543.21,0.00019178,2]
[350714620,1738078245179,-543.21,0.00019178,2]
[350714622,1738078245188,-543.21,0.00019178,2]
[350714624,1738078245197,-543.21,0.00019178,2]
[350714625,1738078245207,-543.21,0.00019178,2]
[350714627,1738078245216,-543.21,0.00019178,2]
[350714629,1738078245224,-587.06992791,0.00019178,2]
[350714631,1738078245234,-535.99,0.00019178,2]
[350714633,1738078245243,-535.99,0.00019178,2]
[350714636,1738078245252,-535.99,0.00019178,2]
[350714637,1738078245261,-501.86431864,0.00019178,2]
[350714639,1738078245270,-535.99,0.00019178,2]
[350714642,1738078245280,-535.99,0.00019178,2]
[350714643,1738078245288,-535.99,0.00019178,2]
[350714646,1738078245298,-535.99,0.00019178,2]
[350714647,1738078245308,-535.99,0.00019178,2]
[350714650,1738078245318,-535.99,0.00019178,2]